bitfinex-derivatives/quotes_ETHF0:USTF0_20241017
["timestamp","ask_amount","ask_price","bid_price","bid_amount"]
[1729137545906,1.6483,2642.2,2642.1,4.57132768]
[1729137547003,1.6483,2642.2,2642.1,1.36352768]
[1729137547905,2.02682,2642.2,2642.1,4.57132768]
[1729137548704,2.02682,2642.2,2642.1,1.36352768]
[1729137548907,2.02682,2642.2,2642.1,4.57132768]
[1729137549097,1.6483,2642.2,2642.1,4.57132768]
[1729137549902,1.6483,2642.2,2642.1,4.96982768]
[1729137550506,2.02682,2642.2,2642.1,4.96982768]
[1729137550702,1.6483,2642.2,2642.1,4.96982768]
[1729137550900,2.02682,2642.2,2642.1,4.96982768]
[1729137551500,1.6483,2642.2,2642.0,0.98499768]
[1729137551705,2.009,2642.1,2641.7,4.57879768]
[1729137551911,1.60858,2641.8,2641.7,3.5938]
[1729137552197,1.60858,2641.8,2641.7,3.9724]
[1729137553699,0.4183,2642.2,2641.7,5.80879768]
[1729137553908,1.23,2642.1,2642.0,1.60855]
[1729137554105,1.23,2642.1,2642.0,2.01545]
[1729137554505,1.6483,2642.2,2642.1,0.37854]
[1729137554709,1.6483,2642.2,2642.1,0.78184]
[1729137555914,1.23,2642.2,2642.1,3.98964]
[1729137556120,1.23,2642.3,2642.1,4.8411]
[1729137556307,1.23,2642.3,2642.2,0.37851]
[1729137557504,1.60851,2642.3,2642.2,0.37851]
[1729137558710,0.3785,2642.4,2642.1,4.8411]
[1729137558908,0.3785,2642.4,2642.3,0.37851]
[1729137559214,1.6085,2642.4,2642.3,0.37851]
[1729137560719,1.23,2642.4,2642.1,4.8411]
[1729137560913,1.23,2642.2,2642.1,5.21964]
[1729137561109,1.23,2642.2,2642.1,4.97463768]
[1729137569920,1.23,2642.2,2642.1,5.37123768]
[1729137573324,1.23,2642.2,2642.1,6.71597802]
[1729137573815,1.23,2642.2,2642.1,6.71619889]
[1729137574121,1.23,2642.2,2642.1,6.71621236]
[1729137574311,1.60852,2642.2,2642.1,6.71621236]
[1729137574512,1.23,2642.2,2642.1,5.73121468]
[1729137575120,1.23,2642.2,2642.1,6.71716054]
[1729137575522,1.23,2642.2,2642.1,5.73121468]
[1729137576220,1.23,2642.2,2642.1,4.38624]
[1729137578721,1.60852,2642.2,2642.1,4.38624]
[1729137578923,1.23,2642.2,2642.1,4.38624]
[1729137581118,1.60852,2642.2,2642.1,4.38624]
[1729137581325,1.23,2642.2,2642.1,4.38624]
[1729137584324,1.23,2642.2,2642.1,5.73231147]
[1729137584524,0.3785,2642.4,2642.1,5.35377147]
[1729137584725,0.4059,2642.8,2642.3,3.19991108]
[1729137584926,0.78434,2642.8,2642.7,0.37845]
[1729137585123,0.78434,2642.8,2642.7,2.21645187]
[1729137585322,2.42774,2642.8,2642.7,1.36490187]
[1729137586131,2.0493,2642.8,2642.6,1.38675187]
[1729137586333,0.37845,2642.7,2642.6,2.2584278]
[1729137586632,1.60845,2642.7,2642.6,1.76509558]
[1729137587032,1.60845,2642.7,2642.6,0.77875]
[1729137587231,1.60845,2642.7,2642.6,1.76509558]
[1729137587535,1.60845,2642.7,2642.6,0.77875]
[1729137591038,1.60845,2642.7,2642.6,0.77877]
[1729137596642,1.60845,2642.8,2642.7,0.37844]
[1729137596840,1.60845,2642.8,2642.6,0.4003]
[1729137596841,0.37845,2642.7,2642.6,0.77875]
[1729137599142,1.60845,2642.7,2642.6,0.77875]
[1729137601641,1.60845,2642.7,2642.6,0.77877]
[1729137601838,1.60845,2642.7,2642.6,0.4003]
[1729137602040,1.23,2642.7,2642.4,4.99844558]
[1729137602251,1.23,2642.7,2642.4,4.99843558]
[1729137602252,0.37848,2642.5,2642.4,4.99843558]
[1729137602443,0.37848,2642.5,2642.4,4.01209]
[1729137603340,0.37848,2642.5,2642.4,5.24209]
[1729137603546,0.37848,2642.5,2642.4,6.22843558]
[1729137603942,0.37848,2642.5,2642.4,7.57401201]
[1729137604142,0.37848,2642.5,2642.4,6.22843558]
[1729137605644,1.6216,2642.8,2642.4,5.84994558]
[1729137605844,0.37846,2642.7,2642.6,0.37845]
[1729137606040,0.8018,2642.9,2642.6,1.23]
[1729137606240,0.37844,2642.9,2642.8,0.37844]
[1729137606444,5.355,2643.7,2642.8,0.37844]
[1729137606445,11.29500466,2643.7,2642.8,8.46]
[1729137606641,0.18712872,2643.9,2642.8,8.46]
[1729137606642,0.37836,2643.4,2643.3,1.60836]
[1729137606846,0.37836,2643.4,2643.3,2.42646]
[1729137607554,0.37836,2643.4,2643.3,2.4498]
[1729137607749,0.37841,2643.0,2642.9,0.98634558]
[1729137607949,1.23,2643.0,2642.7,0.4]
[1729137608150,5.13762,2643.3,2642.7,0.4]
[1729137608151,1.60844,2642.8,2642.7,0.4]
[1729137609953,1.60844,2642.8,2642.7,1.63]
[1729137610350,0.37844,2642.8,2642.7,1.63]
[1729137610549,0.37844,2642.8,2642.7,2.00845]
[1729137610845,0.37844,2642.8,2642.7,1.63]
[1729137611050,0.37844,2642.8,2642.7,2.00845]
[1729137611249,0.37844,2642.8,2642.7,0.4]
[1729137611453,0.37844,2642.8,2642.7,1.63]
[1729137612356,0.37844,2642.8,2642.7,2.00845]
[1729137612748,0.37844,2642.8,2642.7,1.63]
[1729137616053,0.37844,2642.8,2642.7,2.00845]
[1729137616455,1.62224,2642.9,2642.8,0.37844]
[1729137616658,3.2078,2643.6,2642.8,1.23]
[1729137616854,0.37838,2643.2,2643.1,1.23]
[1729137617055,0.37838,2643.2,2643.1,2.4078]
[1729137617553,0.79748,2643.3,2643.2,0.37838]
[1729137617753,0.37836,2643.4,2643.3,0.37835]
[1729137617961,0.37836,2643.4,2643.3,1.60835]
[1729137619653,0.37835,2643.5,2643.4,0.37835]
[1729137619950,0.37834,2643.6,2643.5,0.37833]
[1729137620153,0.37834,2643.6,2643.5,1.19143]
[1729137622059,1.60834,2643.6,2643.5,1.19143]
[1729137622764,0.37834,2643.6,2643.5,2.42143]
[1729137624153,1.60834,2643.6,2643.5,2.42143]
[1729137626657,0.37834,2643.6,2643.5,2.42143]
[1729137627451,0.76722,2643.7,2643.6,0.37832]
[1729137627655,0.37831,2643.7,2643.6,2.00992]
[1729137628963,0.37831,2643.7,2643.5,2.0431]
[1729137628964,0.37832,2643.6,2643.5,2.0431]
[1729137630166,0.37832,2643.6,2643.0,3.2078]
[1729137630167,0.37838,2643.3,2643.2,0.37837]
[1729137630355,0.37838,2643.3,2643.2,2.39957]
[1729137631961,0.37838,2643.3,2643.2,0.7912]
[1729137632165,0.37838,2643.3,2643.2,2.0212]
[1729137633963,0.37838,2643.3,2643.2,2.39958]
[1729137636069,0.37838,2643.3,2643.2,2.0212]
[1729137637362,0.37838,2643.3,2643.2,2.39958]
[1729137637960,0.94581,2643.7,2643.2,2.0212]
[1729137638160,0.3965,2643.8,2643.7,0.37831]
[1729137638361,3.58609,2643.9,2643.8,0.3783]
[1729137638662,3.58609,2643.9,2643.8,1.6083]
[1729137639266,0.37829,2643.9,2643.8,1.6083]
[1729137647977,0.37828,2644.0,2643.9,0.37827]
[1729137648165,0.37828,2644.0,2643.9,1.60827]
[1729137648370,2.17559,2644.3,2644.2,0.37823]
[1729137648371,0.37824,2644.3,2644.2,0.37823]
[1729137648571,0.37824,2644.3,2644.2,1.60823]
[1729137649485,0.37824,2644.3,2644.2,1.23]
[1729137650077,0.37824,2644.3,2644.2,1.60824]
[1729137650271,1.23,2644.3,2643.8,3.2078]
[1729137650471,0.37834,2643.5,2643.4,3.58615]
[1729137650679,0.37834,2643.5,2643.4,4.4378]
[1729137651782,0.37834,2643.5,2643.4,4.81615]
[1729137651983,0.37834,2643.5,2643.4,4.4378]
[1729137652181,0.37834,2643.5,2643.4,4.81615]
[1729137652378,1.60834,2643.5,2643.4,3.2078]
[1729137652590,1.60834,2643.5,2643.4,4.4378]
[1729137652779,0.37834,2643.5,2643.4,4.4378]
[1729137655583,0.37834,2643.5,2643.4,1.23]
[1729137657387,0.37837,2643.3,2643.2,0.37836]
[1729137657589,0.37837,2643.3,2643.2,1.60836]
[1729137658289,3.407,2643.7,2643.3,0.37836]
[1729137658290,0.37836,2643.4,2643.3,0.37836]
[1729137658486,0.37836,2643.4,2643.3,1.60836]
[1729137663194,0.37835,2643.5,2643.4,0.37835]
[1729137663388,0.37835,2643.5,2643.4,2.01505]
[1729137663987,0.37833,2643.6,2643.5,0.37833]
[1729137664188,0.8247,2643.7,2643.5,2.022]
[1729137664490,0.8247,2643.7,2643.6,1.60832]
[1729137664491,1.20302,2643.7,2643.6,1.60832]
[1729137667389,1.20302,2643.7,2643.6,1.23]
[1729137667887,0.37834,2643.5,2643.4,0.4067]
[1729137668091,0.37834,2643.5,2643.4,1.23]
[1729137668486,0.37837,2643.3,2643.2,3.2078]
[1729137668685,0.37837,2643.3,2643.2,4.4378]
[1729137668887,0.37837,2643.3,2643.2,4.81618]
[1729137669298,0.37837,2643.3,2643.2,4.4378]
[1729137670394,0.37837,2643.3,2643.2,4.81618]
[1729137670997,0.4028,2643.5,2643.2,4.4378]
[1729137671193,0.78114,2643.5,2643.4,1.23]
[1729137671392,4.56434,2643.5,2643.4,1.23]
[1729137672197,0.78114,2643.5,2643.4,1.23]
[1729137672593,4.56434,2643.5,2643.4,1.23]
[1729137673995,4.56434,2643.5,2643.3,1.23]
[1729137673996,0.37835,2643.4,2643.3,1.23]
[1729137674392,0.37835,2643.4,2643.2,3.58617]
[1729137674393,0.37837,2643.3,2643.2,3.2078]
[1729137674590,2.00277,2643.3,2643.2,4.4378]
[1729137674792,5.78597,2643.3,2643.2,4.4378]
[1729137674992,5.78597,2643.3,2643.0,1.6412]
[1729137674993,0.3784,2643.1,2643.0,1.6412]
[1729137675199,1.6084,2643.1,2643.0,1.23]
[1729137675695,2.0138,2643.1,2643.0,1.23]
[1729137675902,0.37842,2642.9,2642.8,3.2078]
[1729137676101,1.60842,2642.9,2642.8,3.2078]
[1729137676292,5.39242,2642.9,2642.8,3.2078]
[1729137678006,15.4518,2642.9,2642.3,3.0178]
[1729137678199,15.4518,2642.9,2642.1,0.98634558]
[1729137678200,0.37852,2642.3,2642.2,0.37852]
[1729137678504,1.60852,2642.3,2642.2,1.60852]
[1729137678804,2.42072,2642.3,2642.2,1.60852]
[1729137678994,2.42072,2642.3,2642.2,1.23]
[1729137679601,2.0422,2642.3,2642.0,1.6158]
[1729137679803,2.0422,2642.3,2642.0,1.99434]
[1729137679804,0.37854,2642.1,2642.0,1.99434]
[1729137680201,0.37854,2642.1,2642.0,1.99435]
[1729137680394,1.60853,2642.2,2642.1,0.37854]
[1729137680593,1.60853,2642.2,2642.0,1.6158]
[1729137680803,1.23,2642.2,2642.0,1.6158]
[1729137681003,0.37855,2642.0,2641.9,1.99327]
[1729137681607,0.37855,2642.0,2641.9,1.6147]
[1729137681905,0.37855,2642.0,2641.9,0.76327]
[1729137682102,0.37855,2642.0,2641.9,0.3847]
[1729137682309,0.37855,2642.0,2641.9,0.76327]
[1729137683199,0.37855,2642.0,2641.9,0.3847]
[1729137683402,0.37855,2642.0,2641.9,0.76327]
[1729137683607,0.8122,2642.3,2641.8,0.3858]
[1729137683816,0.8122,2642.3,2641.7,3.6186]
[1729137684009,0.37856,2642.0,2641.9,0.37856]
[1729137684411,0.37857,2641.9,2641.8,0.78318]
[1729137684607,0.37857,2642.0,2641.8,0.4046]
[1729137684807,0.37857,2642.0,2641.9,0.37857]
[1729137685613,0.37857,2641.9,2641.8,0.78317]
[1729137685913,0.37856,2642.0,2641.9,0.37856]
[1729137687202,0.37854,2642.1,2642.0,0.37855]
[1729137687406,0.8122,2642.3,2641.8,3.0646]
[1729137687811,0.37853,2642.2,2642.1,0.37853]
[1729137689110,0.8122,2642.3,2641.8,3.0646]
[1729137689418,0.37853,2642.2,2642.1,0.37852]
[1729137689907,0.8122,2642.3,2641.8,3.0646]
[1729137690107,0.37853,2642.2,2642.1,0.37852]
[1729137692818,1.19071,2642.3,2642.1,0.37852]
[1729137693019,1.19071,2642.3,2642.2,0.37852]
[1729137693316,0.8122,2642.3,2641.8,2.66]
[1729137693514,0.37853,2642.2,2642.0,0.37854]
[1729137693726,1.19072,2642.3,2642.1,0.37852]
[1729137694023,0.37852,2642.2,2642.1,0.37852]
[1729137694518,0.37854,2642.1,2642.0,0.37854]
[1729137694915,0.8122,2642.3,2641.7,4.56508]
[1729137695220,0.37855,2642.1,2642.0,0.37854]
[1729137696118,0.8122,2642.3,2641.7,3.6186]
[1729137696317,0.8122,2642.3,2641.9,0.37856]
[1729137696318,0.37856,2642.0,2641.9,0.37856]
[1729137697211,1.89995126,2642.3,2641.7,3.6186]
[1729137697212,0.95366126,2642.3,2641.7,3.6186]
[1729137697420,0.37855,2642.1,2642.0,0.37854]
[1729137697618,0.37853,2642.2,2642.1,0.37853]
[1729137698015,1.19072,2642.3,2642.2,0.37852]
[1729137698618,0.37854,2642.2,2642.1,0.37853]
[1729137701829,0.37854,2642.2,2642.1,1.60853]
[1729137702826,2.0422,2642.3,2642.1,1.23]
[1729137703025,2.42072,2642.3,2642.2,0.37852]
[1729137703219,2.42072,2642.3,2642.2,0.78682]
[1729137704421,2.02592,2642.3,2642.2,0.78682]
[1729137704618,2.02592,2642.3,2642.2,0.4083]
[1729137705423,1.6474,2642.3,2642.1,1.60853]
[1729137705633,0.37852,2642.2,2642.1,1.60853]
[1729137706523,0.37852,2642.2,2642.1,0.37854]
[1729137707031,0.37854,2642.1,2642.0,1.99773]
[1729137708627,0.37854,2642.1,2642.0,1.23]
[1729137708828,1.16174,2642.1,2642.0,1.23]
[1729137709031,0.37858,2641.8,2641.7,5.23619]
[1729137709723,0.37858,2641.8,2641.7,4.00619]
[1729137710033,1.60858,2641.8,2641.7,5.23619]
[1729137710330,2.03308,2641.8,2641.7,5.23619]
[1729137710524,2.03308,2641.8,2641.7,3.6276]
[1729137710732,2.03308,2641.8,2641.7,3.2078]
[1729137711029,11.81868,2641.8,2641.7,3.2078]
[1729137711331,0.37864,2641.5,2641.4,0.37863]
[1729137711531,1.60864,2641.5,2641.4,0.37863]
[1729137711729,1.60864,2641.5,2641.4,1.60863]
[1729137712330,5.39422,2641.5,2641.4,0.37863]
[1729137712629,1.60862,2641.5,2641.4,0.37863]
[1729137713026,5.39422,2641.5,2641.4,1.60863]
[1729137716030,5.39422,2641.5,2641.2,3.2078]
[1729137716031,5.0156,2641.5,2641.2,3.2078]
[1729137716225,0.4227,2641.6,2641.2,4.81646]
[1729137716226,1.60865,2641.3,2641.2,4.81646]
[1729137717727,0.37865,2641.3,2641.2,4.81646]
[1729137718225,2.02004,2641.4,2641.3,0.37865]
[1729137718537,1.6414,2641.4,2641.3,0.37865]
[1729137718730,1.23,2641.5,2641.4,0.37864]
[1729137718939,4.4378,2641.6,2641.5,0.37862]
[1729137719131,1.23,2641.6,2641.5,0.37862]
[1729137719429,5.0156,2641.6,2641.5,0.37862]
[1729137720537,1.23,2641.6,2641.5,0.37862]
[1729137723033,1.60861,2641.6,2641.5,0.37862]
[1729137723734,1.23,2641.6,2641.5,0.37862]
[1729137724840,1.23,2641.6,2641.5,3.58642]
[1729137725040,1.23,2641.6,2641.5,0.37862]
[1729137725538,1.23,2641.6,2641.5,0.77312]
[1729137726137,0.78916,2642.0,2641.9,0.37857]
[1729137726338,0.37857,2641.9,2641.8,0.37857]
[1729137726538,1.60857,2641.9,2641.8,0.37857]
[1729137727537,1.60857,2641.9,2641.5,4.58775637]
[1729137727538,1.23,2641.9,2641.5,4.58775637]
[1729137727741,1.23,2641.6,2641.5,4.96637637]
[1729137728942,0.37858,2641.9,2641.5,4.96637637]
[1729137728943,0.963,2642.6,2641.5,12.38306742]
[1729137729148,0.37857,2642.0,2641.9,0.37856]
[1729137730236,1.60857,2642.0,2641.9,0.37856]
[1729137730446,1.23,2642.0,2641.9,0.37856]
[1729137731143,1.60855,2642.0,2641.9,0.37856]
[1729137731340,1.23,2642.0,2641.9,0.37856]
[1729137731551,1.60855,2642.0,2641.9,0.78506]
[1729137732250,1.23,2642.0,2641.9,0.78506]
[1729137733045,1.60855,2642.0,2641.9,0.78506]
[1729137733243,1.60855,2642.0,2641.9,0.4065]
[1729137733541,1.60856,2642.0,2641.9,0.37857]
[1729137733738,1.60856,2642.0,2641.8,0.408]
[1729137733739,1.23,2642.0,2641.8,0.408]
[1729137733941,1.60857,2641.9,2641.8,0.78658]
[1729137734346,1.60857,2641.9,2641.8,0.37858]
[1729137737256,1.23,2641.9,2641.8,0.37858]
[1729137737444,1.23,2641.9,2641.8,0.79838]
[1729137738158,1.60856,2642.0,2641.9,0.37857]
[1729137738950,0.3968,2642.2,2641.8,1.6498]
[1729137739153,0.77534,2642.2,2642.1,0.37854]
[1729137739349,2.00534,2642.2,2642.1,0.37854]
[1729137740153,0.3985,2642.3,2642.0,1.23]
[1729137740357,3.96220466,2642.9,2642.0,1.23]
[1729137740358,3.2078,2643.0,2642.2,1.23]
[1729137740553,0.76531,2643.0,2642.9,0.37842]
[1729137740747,1.6169,2643.0,2642.9,1.60842]
[1729137740951,0.76531,2643.0,2642.9,0.37842]
[1729137741148,1.6169,2643.0,2642.9,0.37842]
[1729137741555,1.99531,2643.0,2642.9,0.37842]
[1729137741756,1.6169,2643.0,2642.8,1.23]
[1729137742054,0.37843,2642.9,2642.8,0.37843]
[1729137743246,0.3869,2643.0,2642.6,0.401]
[1729137743448,7.3328,2643.7,2642.9,0.94607]
[1729137743649,7.3328,2643.7,2642.8,2.66]
[1729137743650,0.8041,2643.6,2643.5,0.37834]
[1729137743861,2.66,2644.1,2643.5,0.37833]
[1729137743862,0.37832,2643.7,2643.5,0.37833]
[1729137744055,6.40210922,2644.0,2643.4,1.21305]
[1729137744251,0.37833,2643.6,2643.4,0.8347]
[1729137744566,0.37833,2643.6,2643.5,0.37834]
[1729137744950,6.40210922,2644.0,2643.4,0.8347]
[1729137744951,6.2647,2644.0,2643.4,0.8347]
[1729137745359,0.3783,2643.8,2643.4,1.2224]
[1729137745550,0.37829,2643.9,2643.7,0.37831]
[1729137745747,6.2647,2644.0,2643.4,1.2224]
[1729137745954,3.98297,2644.0,2643.8,0.37828]
[1729137746356,3.98297,2644.0,2643.4,1.2224]
[1729137746556,3.98297,2644.0,2643.9,0.37828]
[1729137746856,3.6047,2644.0,2643.9,0.37828]
[1729137747248,3.98297,2644.0,2643.9,0.37828]
[1729137747956,3.98297,2644.0,2643.8,0.37829]
[1729137748154,3.98297,2644.0,2643.7,0.3783]
[1729137748155,0.37828,2643.9,2643.7,0.3783]
[1729137748559,3.6047,2644.0,2643.4,1.2224]
[1729137748757,3.2078,2644.0,2643.9,0.37828]
[1729137751162,0.37826,2644.1,2643.9,0.37828]
[1729137751462,3.4868,2644.4,2644.0,0.37825]
[1729137751659,0.37825,2644.1,2644.0,0.37825]
[1729137752068,0.37825,2644.1,2643.6,4.15362]
[1729137752260,3.4868,2644.4,2643.8,0.37829]
[1729137752261,0.37827,2644.0,2643.8,0.37829]
[1729137752660,0.37828,2644.0,2643.6,3.2078]
[1729137752956,0.37828,2644.0,2643.8,0.37829]
[1729137753360,0.37828,2644.0,2643.9,0.37828]
[1729137753551,0.37827,2644.0,2643.8,0.37828]
[1729137753759,0.37827,2644.0,2643.6,3.2078]
[1729137754659,0.37827,2644.0,2643.9,0.37828]
[1729137755057,2.66,2644.2,2643.6,3.2078]
[1729137755363,0.37827,2644.0,2643.9,0.37827]
[1729137755863,0.8268,2644.4,2643.9,3.7824]
[1729137756051,0.8268,2644.4,2644.3,0.37822]
[1729137756253,0.8268,2644.4,2644.0,1.73906]
[1729137756254,0.8268,2644.4,2644.0,0.7934]
[1729137756452,0.37823,2644.3,2644.2,0.37823]
[1729137756956,0.37822,2644.3,2644.2,0.37823]
[1729137757654,1.20501,2644.4,2644.3,0.37822]
[1729137757962,0.8268,2644.4,2644.0,0.7934]
[1729137758157,0.37822,2644.3,2644.2,0.37823]
[1729137758864,1.20502,2644.4,2644.2,0.37823]
[1729137759363,0.37822,2644.3,2644.2,0.37823]
[1729137761971,0.8268,2644.4,2644.0,0.7934]
[1729137762169,1.20502,2644.4,2644.3,0.37822]
[1729137763769,0.37823,2644.3,2644.2,0.37823]
[1729137765668,0.8268,2644.4,2644.0,0.7934]
[1729137765861,1.20502,2644.4,2644.2,0.37823]
[1729137766063,0.37822,2644.3,2644.2,0.37823]
[1729137767573,1.20502,2644.4,2644.3,0.37822]
[1729137767768,2.43502,2644.4,2644.3,0.37822]
[1729137770376,0.37823,2644.3,2644.2,0.37822]
[1729137770879,2.43502,2644.4,2644.3,0.37822]
[1729137771477,2.0568,2644.4,2644.1,4.4378]
[1729137771775,0.37823,2644.3,2644.2,0.37822]
[1729137772181,0.37824,2644.2,2644.1,3.58604]
[1729137772472,0.37824,2644.3,2644.2,0.37823]
[1729137773369,1.60824,2644.3,2644.2,0.37823]
[1729137773772,1.23,2644.3,2644.1,3.2078]
[1729137774076,1.23,2644.2,2644.1,3.58605]
[1729137774276,1.60824,2644.2,2644.1,3.58605]
[1729137774680,1.23,2644.2,2644.1,3.58605]
[1729137775272,1.60824,2644.2,2644.1,3.58605]
[1729137775473,1.23,2644.2,2644.1,3.58605]
[1729137776374,1.23,2644.2,2644.1,4.81605]
[1729137778483,1.23,2644.2,2644.1,1.60825]
[1729137778779,1.23,2644.2,2644.1,4.81605]
[1729137778981,0.8268,2644.4,2644.3,0.37822]
[1729137778982,0.78782,2644.4,2644.3,0.37822]
[1729137779180,2.01782,2644.4,2644.3,0.37822]
[1729137780373,0.78782,2644.4,2644.3,0.37822]
[1729137780578,0.78782,2644.4,2644.3,1.60822]
[1729137781676,0.4231,2644.5,2644.3,1.23]
[1729137781976,2.0332,2644.6,2644.5,0.3782]
[1729137782181,0.4131,2644.6,2644.5,1.6082]
[1729137782374,0.77538,2644.7,2644.6,0.37818]
[1729137782682,2.00538,2644.7,2644.6,0.37818]
[1729137783684,1.23,2644.7,2644.6,0.37818]
[1729137783879,0.77606,2644.8,2644.7,0.37817]
[1729137784074,2.00606,2644.8,2644.7,1.60817]
[1729137784278,0.3979,2644.8,2644.7,4.81597]
[1729137786281,3.53233723,2645.3,2644.7,4.4378]
[1729137786580,3.53233723,2645.3,2644.9,1.60814]
[1729137786581,1.60813,2645.0,2644.9,1.60814]
[1729137786882,1.60812,2645.1,2644.9,1.23]
[1729137787084,1.60812,2645.0,2644.9,1.60813]
[1729137788279,1.60812,2645.0,2644.9,1.23]
[1729137788474,1.60812,2645.0,2644.9,1.60814]
[1729137788674,0.37812,2645.1,2644.9,1.60814]
[1729137788877,1.2133,2645.2,2644.9,1.60814]
[1729137789178,1.60812,2645.0,2644.9,1.60814]
[1729137791180,1.23,2645.0,2644.9,1.60814]
[1729137791385,1.60812,2645.0,2644.9,1.60814]
[1729137791679,1.23,2645.0,2644.9,1.60814]
[1729137792877,1.60812,2645.1,2644.9,1.23]
[1729137793078,1.23,2645.1,2645.0,0.37812]
[1729137793278,1.2133,2645.2,2645.1,0.37811]
[1729137793477,0.94512,2645.6,2645.1,1.23]
[1729137793678,1.60809,2645.3,2645.2,1.60808]
[1729137793878,1.23,2645.3,2645.2,1.60808]
[1729137794285,1.60808,2645.3,2645.2,1.60808]
[1729137797382,1.60808,2645.3,2645.2,1.60809]
[1729137797986,1.74715573,2645.3,2645.2,1.60809]
[1729137798688,0.13907573,2645.3,2645.2,1.60809]
[1729137798988,0.37807,2645.4,2645.3,0.37808]
[1729137799185,0.4161,2645.5,2645.3,1.23]
[1729137799385,0.37806,2645.5,2645.4,1.60807]
[1729137799583,0.37806,2645.5,2645.4,2.02927]
[1729137799989,0.14345578,2645.6,2645.5,0.37805]
[1729137800191,0.4019,2645.9,2645.5,1.23]
[1729137800389,0.4019,2645.9,2645.8,1.23]
[1729137800586,1.1694,2645.9,2645.8,1.23]
[1729137800792,1.1694,2645.9,2645.8,2.00391]
[1729137801685,0.76749,2645.9,2645.8,2.00391]
[1729137802495,0.76749,2645.9,2645.8,1.6259]
[1729137802789,0.3895,2645.9,2645.8,2.00391]
[1729137802995,0.76749,2645.9,2645.8,2.00391]
[1729137803692,1.99749,2645.9,2645.8,2.00391]
[1729137804891,1.99749,2645.9,2645.8,1.6259]
[1729137805891,1.99749,2645.9,2645.8,2.00391]
[1729137806088,1.99749,2645.9,2645.8,1.6259]
[1729137806693,0.76749,2645.9,2645.8,1.6259]
[1729137810695,0.37799,2645.9,2645.8,1.6259]
[1729137812899,1.60799,2645.9,2645.8,0.3959]
[1729137813203,1.60799,2645.9,2645.8,1.6259]
[1729137815011,0.37799,2645.9,2645.8,2.00391]
[1729137816801,0.37799,2645.9,2645.8,1.6259]
[1729137822802,0.37799,2645.9,2645.6,3.2078]
[1729137822803,1.23,2645.9,2645.6,3.2078]
[1729137822997,0.37805,2645.5,2645.4,0.79746]
[1729137823201,0.37805,2645.5,2645.4,2.02746]
[1729137823402,0.37805,2645.5,2645.4,1.6494]
[1729137823803,0.37805,2645.5,2645.4,2.02747]
[1729137824300,0.37805,2645.5,2645.4,1.6494]
[1729137824500,0.37805,2645.5,2645.4,2.02747]
[1729137824698,1.6171,2645.8,2645.4,1.6494]
[1729137824898,1.99511,2645.8,2645.7,1.23]
[1729137828109,0.76511,2645.8,2645.7,1.23]
[1729137828305,1.99511,2645.8,2645.7,1.23]
[1729137832404,0.37801,2645.8,2645.7,1.23]
[1729137832608,0.37801,2645.8,2645.7,1.60802]
[1729137833608,0.37801,2645.8,2645.7,1.23]
[1729137833905,0.37801,2645.8,2645.7,1.60802]
[1729137834109,1.6391,2646.0,2645.7,1.23]
[1729137834417,1.60798,2646.0,2645.9,1.23]
[1729137834615,0.37799,2645.9,2645.8,2.0252]
[1729137834811,1.60799,2645.9,2645.8,2.0252]
[1729137838306,1.60799,2645.9,2645.8,0.7952]
[1729137838617,1.60799,2645.9,2645.8,0.401]
[1729137839605,1.60799,2645.9,2645.4,0.3915]
[1729137839606,4.4378,2645.9,2645.4,0.3915]
[1729137839810,0.37805,2645.5,2645.4,0.3915]
[1729137840121,0.37805,2645.5,2645.4,1.6215]
[1729137840421,0.37805,2645.5,2645.4,1.99957]
[1729137840916,0.37805,2645.6,2645.5,0.37804]
[1729137841109,0.37805,2645.6,2645.5,1.60804]
[1729137841314,0.37805,2645.6,2645.5,1.23]
[1729137841517,0.37805,2645.6,2645.5,1.60805]
[1729137842416,0.37805,2645.6,2645.5,1.23]
[1729137842918,0.37805,2645.6,2645.5,1.60805]
[1729137844316,0.37805,2645.6,2645.5,1.23]
[1729137844818,0.37805,2645.6,2645.5,1.60805]
[1729137846218,0.37804,2645.7,2645.6,0.37804]
[1729137846421,0.37805,2645.5,2645.4,3.97735]
[1729137846713,0.37805,2645.5,2645.4,5.20735]
[1729137847309,0.37805,2645.5,2645.4,3.5993]
[1729137847520,1.60805,2645.5,2645.4,3.5993]
[1729137847718,1.60805,2645.5,2645.4,3.2078]
[1729137849013,1.60805,2645.5,2644.8,0.98013295]
[1729137849014,0.37812,2645.0,2644.8,0.98013295]
[1729137849216,1.60814,2644.9,2644.8,1.6322]
[1729137849612,1.60814,2644.9,2644.8,2.01035]
[1729137849912,1.60814,2644.9,2644.6,0.4023]
[1729137849913,1.23,2644.9,2644.6,0.4023]
[1729137850113,1.23,2644.9,2644.2,2.45033238]
[1729137850114,0.37821,2644.4,2644.2,2.45033238]
[1729137850420,0.37822,2644.3,2644.2,0.386]
[1729137850921,0.37822,2644.3,2644.2,0.76424]
[1729137851217,0.37822,2644.3,2644.2,1.616]
[1729137852215,0.37822,2644.3,2644.2,1.99424]
[1729137852416,0.37822,2644.3,2644.2,1.616]
[1729137853214,1.60822,2644.3,2644.2,1.616]
[1729137853710,1.60822,2644.3,2644.2,1.99424]